bitfinex/quotes_BTCUSD_20250423
["timestamp","ask_amount","ask_price","bid_price","bid_amount"]
[1745408447394,0.003,93428.0,93420.0,0.54354184]
[1745408447738,0.00416861,93427.0,93420.0,0.54354184]
[1745408448149,0.003,93428.0,93420.0,0.54354184]
[1745408448653,0.00416861,93427.0,93420.0,0.54354184]
[1745408448879,0.00616861,93427.0,93420.0,0.27177092]
[1745408449116,0.002,93427.0,93420.0,0.27177092]
[1745408449346,0.00416829,93426.0,93417.0,0.27177092]
[1745408449583,0.002,93427.0,93417.0,0.27177092]
[1745408450221,0.004,93427.0,93417.0,0.27177092]
[1745408450661,0.003,93427.0,93417.0,0.27177092]
[1745408451495,0.0463,93425.0,93417.0,0.17840808]
[1745408451750,0.0463,93423.0,93417.0,0.17840808]
[1745408452169,0.00413197,93422.0,93417.0,0.17840808]
[1745408452386,0.00413197,93422.0,93412.0,0.17840808]
[1745408452827,0.13181345,93421.0,93412.0,0.17840808]
[1745408453020,0.0499,93420.0,93412.0,0.17840808]
[1745408453218,0.00374669,93419.0,93412.0,0.17840808]
[1745408453663,0.00413073,93418.0,93412.0,0.17840808]
[1745408453880,0.06404085,93416.0,93412.0,0.17840808]
[1745408454144,0.01454085,93414.0,93406.0,0.17840808]
[1745408454337,0.1106371,93413.0,93400.0,0.35681616]
[1745408454537,0.11476627,93413.0,93400.0,0.35681616]
[1745408454747,0.11476627,93413.0,93412.0,0.001]
[1745408455117,0.11476627,93413.0,93412.0,0.002]
[1745408455318,0.11476627,93413.0,93400.0,0.35681616]
[1745408455525,0.11576627,93413.0,93403.0,0.27192551]
[1745408455758,0.11676627,93413.0,93403.0,0.27192551]
[1745408455980,0.11201931,93413.0,93403.0,0.27192551]
[1745408456931,0.11101931,93413.0,93403.0,0.27192551]
[1745408457138,0.11301931,93413.0,93412.0,0.004]
[1745408457409,0.13559533,93413.0,93412.0,0.004]
[1745408457613,0.13559533,93413.0,93412.0,0.002]
[1745408457815,0.13559533,93413.0,93403.0,0.27592551]
[1745408458063,0.13659533,93413.0,93403.0,0.27992551]
[1745408458200,0.13459533,93413.0,93403.0,0.27592551]
[1745408458398,0.13459533,93413.0,93412.0,0.001]
[1745408458604,0.11101931,93413.0,93412.0,0.001]
[1745408458814,0.11101931,93413.0,93412.0,0.002]
[1745408458815,0.11201931,93413.0,93412.0,0.002]
[1745408459021,0.11301931,93413.0,93412.0,0.002]
[1745408460030,0.11201931,93413.0,93403.0,0.27492551]
[1745408460227,0.11201931,93413.0,93412.0,0.002]
[1745408460451,0.13449533,93413.0,93412.0,0.002]
[1745408460638,0.13449533,93413.0,93412.0,0.003]
[1745408460838,0.00412917,93413.0,93403.0,0.27192551]
[1745408461064,0.00412917,93413.0,93412.0,0.001]
[1745408461343,0.001,93413.0,93412.0,0.001]
[1745408461585,0.00406427,93413.0,93412.0,0.001]
[1745408461801,0.0457,93423.0,93412.0,0.002]
[1745408462027,0.00604358,93413.0,93412.0,0.002]
[1745408462225,0.0457,93423.0,93412.0,0.836306]
[1745408462433,0.00604358,93413.0,93412.0,0.001]
[1745408462631,0.0453,93428.0,93413.0,1.173229]
[1745408462837,0.0453,93428.0,93412.0,0.001]
[1745408463046,0.0453,93428.0,93418.0,0.54385102]
[1745408463660,0.001,93423.0,93418.0,0.27192551]
[1745408464126,0.0453,93428.0,93418.0,0.27192551]
[1745408464328,0.0493,93428.0,93418.0,0.27392551]
[1745408464549,0.06830704,93428.0,93418.0,0.27392551]
[1745408464925,0.06630704,93428.0,93418.0,0.27292551]
[1745408465190,0.002,93423.0,93418.0,0.27392551]
[1745408465864,0.002,93423.0,93418.0,0.002]
[1745408466965,0.002,93423.0,93418.0,0.001]
[1745408467172,0.0453,93428.0,93413.0,0.27192551]
[1745408467387,0.002,93423.0,93418.0,0.002]
[1745408467925,0.0487,93422.0,93418.0,0.001]
[1745408468103,0.0487,93422.0,93410.0,0.27192551]
[1745408468284,0.00407123,93421.0,93418.0,0.001]
[1745408468487,0.0487,93422.0,93418.0,0.001]
[1745408468691,0.00407092,93420.0,93410.0,0.27192551]
[1745408468901,0.0487,93422.0,93410.0,0.27192551]
[1745408469111,0.0527,93422.0,93418.0,0.002]
[1745408469553,0.00407123,93421.0,93418.0,0.002]
[1745408470275,0.00407123,93421.0,93418.0,0.001]
[1745408470595,0.00407123,93421.0,93410.0,0.27292551]
[1745408471035,0.0487,93422.0,93410.0,0.27292551]
[1745408471245,0.002,93421.0,93418.0,0.001]
[1745408471660,0.00404505,93420.0,93418.0,0.001]
[1745408472137,0.00404505,93420.0,93410.0,0.27192551]
[1745408472295,0.00404505,93420.0,93410.0,0.27292551]
[1745408472508,0.0487,93422.0,93410.0,0.27292551]
[1745408473609,0.002,93421.0,93418.0,0.001]
[1745408473982,0.00604505,93420.0,93418.0,0.002]
[1745408474194,0.00604505,93420.0,93418.0,0.001]
[1745408474386,0.0463,93418.0,93400.0,0.2798016]
[1745408474603,0.0463,93416.0,93400.0,0.2798016]
[1745408474804,0.0037468,93415.0,93400.0,0.2798016]
[1745408475030,0.00977117,93415.0,93410.0,0.001]
[1745408475610,0.00977117,93415.0,93405.0,0.17846924]
[1745408475967,0.12143099,93414.0,93405.0,0.17846924]
[1745408476192,0.00374707,93413.0,93400.0,0.36881457]
[1745408476400,0.10689014,93412.0,93400.0,0.36881457]
[1745408476821,0.0060225,93411.0,93400.0,0.36481457]
[1745408477030,0.0060225,93411.0,93410.0,0.001]
[1745408477593,0.0060225,93411.0,93401.0,0.27192395]
[1745408478205,0.0060225,93411.0,93410.0,0.001]
[1745408478408,0.0060225,93411.0,93401.0,0.27192395]
[1745408478942,0.0060225,93411.0,93402.0,0.370151]
[1745408479347,0.001,93411.0,93402.0,0.370151]
[1745408480320,0.002,93411.0,93402.0,0.370151]
[1745408480667,0.0453,93416.0,93402.0,0.370151]
[1745408480886,0.001,93411.0,93402.0,0.372151]
[1745408481081,0.002,93411.0,93403.0,1.356825]
[1745408481238,0.002,93411.0,93403.0,1.061703]
[1745408481437,0.002,93411.0,93403.0,3.134408]
[1745408481647,0.0473,93424.0,93404.0,2.292734]
[1745408481844,0.002,93416.0,93414.0,0.27192395]
[1745408482045,0.002,93416.0,93406.0,0.27192395]
[1745408482298,0.001,93416.0,93407.0,1.774034]
[1745408482446,0.001,93411.0,93407.0,1.72061]
[1745408482792,0.001,93411.0,93408.0,1.944567]
[1745408483025,0.001,93411.0,93407.0,2.039373]
[1745408483205,0.001,93411.0,93407.0,2.004411]
[1745408483397,0.001,93411.0,93407.0,2.004412]
[1745408483775,0.001,93416.0,93407.0,1.597089]
[1745408484012,0.001,93416.0,93407.0,1.549501]
[1745408484221,0.001,93416.0,93408.0,0.424449]
[1745408484453,0.001,93411.0,93407.0,0.100059]
[1745408484711,0.001,93411.0,93406.0,0.27192395]
[1745408484937,0.0473,93424.0,93407.0,0.001]
[1745408485072,0.001,93416.0,93414.0,0.27192395]
[1745408485280,0.001,93416.0,93408.0,0.001]
[1745408485538,0.001,93416.0,93409.0,0.276602]
[1745408485733,0.0473,93424.0,93409.0,0.125405]
[1745408485979,0.0473,93424.0,93406.0,0.27192395]
[1745408485980,0.001,93411.0,93410.0,0.125405]
[1745408486140,0.001,93411.0,93407.0,1.032657]
[1745408486343,0.001,93411.0,93407.0,1.22787]
[1745408487535,0.001,93411.0,93408.0,0.32476]
[1745408487934,0.0473,93424.0,93408.0,0.32476]
[1745408488141,0.0473,93424.0,93409.0,0.001]
[1745408488347,0.00405527,93423.0,93410.0,0.29636]
[1745408488778,0.0473,93424.0,93408.0,0.001]
[1745408488993,0.001,93411.0,93409.0,0.145827]
[1745408489236,0.001,93411.0,93408.0,0.001]
[1745408489458,0.0473,93424.0,93401.0,0.27192395]
[1745408489675,0.00405122,93410.0,93402.0,0.10536]
[1745408489892,0.00783301,93423.0,93410.0,0.001]
[1745408490104,0.0055633,93423.0,93410.0,0.001]
[1745408490326,0.0452,93421.0,93410.0,0.27292395]
[1745408490551,0.0496,93419.0,93410.0,0.27292395]
[1745408490776,0.00374677,93418.0,93410.0,0.27292395]
[1745408491003,0.00783182,93418.0,93410.0,0.27292395]
[1745408491248,0.00783182,93418.0,93410.0,0.27192395]
[1745408491427,0.001,93411.0,93410.0,0.27292395]
[1745408491638,0.001,93411.0,93410.0,0.001]
[1745408491902,0.001,93411.0,93408.0,0.001]
[1745408492103,0.00374677,93418.0,93410.0,0.002]
[1745408492589,0.00374677,93418.0,93410.0,0.001]
[1745408493427,0.00374677,93418.0,93401.0,0.27192395]
[1745408493718,0.00374677,93418.0,93410.0,0.002]
[1745408493955,0.00374677,93418.0,93410.0,0.001]
[1745408494919,0.00374677,93418.0,93410.0,0.002]
[1745408495712,0.00374677,93418.0,93410.0,0.001]
[1745408496128,0.0496,93419.0,93410.0,0.002]
[1745408497181,0.0496,93419.0,93408.0,0.27192395]
[1745408497395,0.0496,93419.0,93410.0,0.001]
[1745408498456,0.0496,93419.0,93410.0,0.002]
[1745408499112,0.00604414,93418.0,93410.0,0.002]
[1745408500017,0.00604414,93418.0,93410.0,0.001]
[1745408500227,0.00604414,93418.0,93408.0,0.27184082]
[1745408500454,0.00604414,93418.0,93410.0,0.001]
[1745408500687,0.00604414,93418.0,93410.0,0.002]
[1745408500904,0.0496,93419.0,93410.0,0.002]
[1745408501129,0.00604367,93417.0,93410.0,0.002]
[1745408501352,0.0496,93419.0,93410.0,0.002]
[1745408501580,0.0060432,93416.0,93410.0,0.002]
[1745408501787,0.0496,93419.0,93410.0,0.001]
[1745408502054,0.00604274,93415.0,93408.0,0.27284082]
[1745408502277,0.001,93418.0,93408.0,0.27284082]
[1745408502711,0.00604367,93417.0,93408.0,0.27184082]
[1745408502960,0.00604367,93417.0,93410.0,0.001]
[1745408503184,0.0496,93419.0,93410.0,0.002]
[1745408503465,0.0060432,93416.0,93410.0,0.001]
[1745408503694,0.001,93418.0,93408.0,0.27284082]
[1745408503934,0.00604274,93415.0,93408.0,0.27384082]
[1745408504139,0.00604367,93417.0,93408.0,0.27384082]
[1745408504351,0.001,93418.0,93410.0,0.001]
[1745408504582,0.0060432,93416.0,93410.0,0.001]
[1745408504799,0.00604367,93417.0,93408.0,0.27284082]
[1745408505045,0.00604274,93415.0,93408.0,0.27384082]
[1745408505267,0.0060432,93416.0,93408.0,0.27384082]
[1745408505480,0.0496,93419.0,93408.0,0.27284082]
[1745408505725,0.00604274,93415.0,93408.0,0.27284082]
[1745408505940,0.0496,93419.0,93410.0,0.001]
[1745408506392,0.0496,93419.0,93408.0,0.27284082]
[1745408506624,0.001,93416.0,93409.0,2.243623]
[1745408506814,0.001,93416.0,93409.0,1.507396]
[1745408507084,0.0496,93419.0,93410.0,0.524371]
[1745408507363,0.0496,93419.0,93408.0,0.27184082]
[1745408507544,0.0496,93419.0,93410.0,0.001]
[1745408508238,0.0496,93419.0,93410.0,0.002]
[1745408509108,0.0496,93419.0,93410.0,0.001]
[1745408510240,0.0496,93419.0,93410.0,0.002]
[1745408515615,0.0496,93419.0,93411.0,0.778173]
[1745408516686,0.0496,93419.0,93411.0,0.678765]
[1745408516901,0.0496,93419.0,93411.0,1.154049]
[1745408517121,0.0496,93419.0,93412.0,0.660891]
[1745408517996,0.03143761,93419.0,93412.0,0.660891]
[1745408518314,1e-08,93419.0,93412.0,0.660891]
[1745408518530,1e-08,93419.0,93409.0,1.4295]
[1745408518725,0.00100001,93419.0,93409.0,1.4295]
[1745408519425,1e-08,93419.0,93409.0,1.338093]
[1745408519641,0.00100001,93419.0,93409.0,1.338093]
[1745408519859,1e-08,93419.0,93409.0,1.339093]
[1745408520079,1e-08,93419.0,93410.0,1.084331]
[1745408520290,1e-08,93419.0,93411.0,0.332873]
[1745408520513,1e-08,93419.0,93410.0,0.461821]
[1745408520742,1e-08,93419.0,93410.0,0.477341]
[1745408520971,1e-08,93419.0,93411.0,0.31638]
[1745408521164,1e-08,93419.0,93412.0,0.31638]
[1745408521395,1e-08,93419.0,93410.0,0.466614]
[1745408521588,1e-08,93419.0,93411.0,0.419383]
[1745408522353,1e-08,93419.0,93412.0,0.143059]
[1745408522534,0.00100001,93419.0,93411.0,0.143059]
[1745408522985,1e-08,93419.0,93411.0,0.143059]
[1745408523187,1e-08,93419.0,93411.0,0.001]
[1745408523392,0.00100001,93419.0,93411.0,0.001]
[1745408523614,0.00100001,93419.0,93412.0,0.143059]
[1745408523820,1e-08,93419.0,93412.0,0.143059]
[1745408524248,1e-08,93419.0,93409.0,0.15159986]
[1745408524466,1e-08,93419.0,93409.0,0.34647883]
[1745408524670,0.00406023,93418.0,93410.0,0.663359]
[1745408524886,0.00100001,93419.0,93410.0,0.51462]
[1745408525096,0.00200001,93419.0,93411.0,0.514279]
[1745408525307,0.00100001,93419.0,93412.0,0.376197]
[1745408525515,0.00100001,93419.0,93410.0,0.558117]
[1745408525741,0.00100001,93419.0,93410.0,0.49589]
[1745408526321,1e-08,93419.0,93410.0,0.49589]
[1745408526486,0.00100001,93419.0,93412.0,0.003]
[1745408526693,0.00100001,93419.0,93413.0,0.158474]
[1745408527267,0.00200001,93419.0,93413.0,0.158474]
[1745408527701,0.00100001,93419.0,93413.0,0.158474]
[1745408527916,0.00200001,93419.0,93413.0,0.160474]
[1745408528139,0.00200001,93419.0,93414.0,0.427309]
[1745408528355,0.0496,93422.0,93413.0,0.002]
[1745408528573,0.0496,93422.0,93414.0,0.603951]
[1745408528788,0.001,93419.0,93414.0,0.603951]
[1745408529223,0.0496,93422.0,93414.0,0.603951]
[1745408529435,0.001,93419.0,93414.0,0.49642]
[1745408529645,0.001,93419.0,93415.0,0.493137]
[1745408530135,0.001,93419.0,93414.0,0.002]
[1745408530584,0.001,93419.0,93415.0,0.146778]
[1745408530759,0.0496,93422.0,93415.0,0.146778]
[1745408530969,0.0496,93422.0,93415.0,0.001]
[1745408531125,0.0506,93422.0,93416.0,0.291451]
[1745408531326,0.0506,93422.0,93415.0,0.291451]
[1745408531524,0.0496,93422.0,93415.0,0.291451]
[1745408531740,0.0496,93422.0,93409.0,0.33794974]
[1745408532102,0.0496,93422.0,93420.0,0.05]
[1745408532505,0.00405247,93421.0,93420.0,0.05]
[1745408533371,0.00409907,93421.0,93420.0,0.05]
[1745408533761,0.00409907,93421.0,93420.0,0.051]
[1745408535447,0.00409907,93421.0,93420.0,0.052]
[1745408536183,0.0461,93434.0,93424.0,0.1783974]
[1745408536412,0.04614666,93434.0,93425.0,1.289635]
[1745408536634,0.04614666,93434.0,93425.0,1.218081]
[1745408536864,0.0486,93440.0,93425.0,1.221288]
[1745408537078,0.412,93453.0,93439.0,0.3567948]
[1745408537292,0.00085,93457.0,93439.0,0.3567948]
[1745408537293,0.10004664,93450.0,93440.0,2.9977684]
[1745408537516,0.10004664,93450.0,93441.0,3.04206]
[1745408537729,0.10004664,93450.0,93441.0,2.705165]
[1745408537956,0.10004664,93450.0,93440.0,3.7147534]
[1745408538170,0.10004664,93450.0,93441.0,2.95162814]
[1745408538383,0.10004664,93450.0,93442.0,1.425917]
[1745408538606,0.10004664,93450.0,93442.0,1.53280714]
[1745408538799,0.10004664,93450.0,93443.0,1.025445]
[1745408539010,0.10004664,93450.0,93443.0,0.618601]
[1745408539235,0.10104664,93450.0,93443.0,0.662862]
[1745408540179,0.10104664,93450.0,93443.0,0.664862]
[1745408540395,0.10104664,93450.0,93444.0,0.604118]
[1745408541367,0.10004664,93450.0,93444.0,0.604118]
[1745408541614,0.10104664,93450.0,93444.0,0.606118]
[1745408541847,0.10104664,93450.0,93445.0,0.910424]
[1745408542694,0.10004664,93450.0,93445.0,0.910424]
[1745408542912,0.10004664,93450.0,93443.0,1.167594]
[1745408543055,0.10004664,93450.0,93445.0,0.002]
[1745408543249,0.10004664,93450.0,93446.0,0.442119]
[1745408543503,0.10004664,93450.0,93445.0,0.002]
[1745408543906,0.0468,93448.0,93445.0,0.002]
[1745408544115,0.01454085,93446.0,93445.0,0.004]
[1745408544279,0.12243099,93446.0,93445.0,0.004]
[1745408544455,0.12243099,93446.0,93445.0,0.002]
[1745408544456,0.16843099,93446.0,93445.0,0.002]
[1745408544664,0.62723099,93446.0,93445.0,0.002]
[1745408544872,0.01454085,93444.0,93443.0,0.002]
[1745408545095,0.1706775,93444.0,93443.0,0.002]
[1745408545387,0.01454085,93442.0,93420.0,0.32184945]
[1745408545560,0.10963666,93441.0,93420.0,0.32184945]
[1745408546390,0.10863666,93441.0,93420.0,0.32184945]
[1745408546627,0.10863666,93441.0,93420.0,0.32974341]
[1745408546835,0.01454085,93439.0,93420.0,0.32974341]
[1745408547116,0.01454085,93437.0,93420.0,0.32974341]
[1745408547256,0.01454085,93435.0,93420.0,0.32974341]
[1745408547479,0.01454085,93433.0,93420.0,0.32974341]
[1745408547751,0.01454085,93431.0,93420.0,0.32974341]
[1745408547882,0.15693666,93430.0,93420.0,0.33074341]
[1745408548493,0.15693666,93430.0,93420.0,0.32974341]
[1745408548718,0.15693666,93430.0,93420.0,0.33074341]
[1745408549336,0.15693666,93430.0,93420.0,0.32974341]
[1745408549515,0.15893666,93430.0,93420.0,0.33074341]
[1745408549727,0.15893666,93430.0,93420.0,0.32284945]
[1745408550160,0.06444775,93429.0,93420.0,0.051]
[1745408550406,0.12517758,93428.0,93420.0,0.051]
[1745408551019,0.12517758,93428.0,93420.0,0.05]
[1745408551446,0.12517758,93428.0,93420.0,0.051]
[1745408552057,0.12517758,93428.0,93410.0,0.09795322]
[1745408552281,0.12917758,93428.0,93420.0,0.001]
[1745408552466,0.15277011,93428.0,93420.0,0.001]
[1745408552876,0.15477011,93428.0,93420.0,0.001]
[1745408553945,0.56677011,93428.0,93420.0,0.001]
[1745408554192,0.55902352,93428.0,93409.0,0.0164769]
[1745408554354,0.01454085,93426.0,93409.0,0.0164769]
[1745408554556,0.01454085,93424.0,93403.0,0.0004249]
[1745408554761,0.01454085,93422.0,93403.0,0.0004249]
[1745408554970,0.11063706,93421.0,93403.0,0.01685949]
[1745408555167,0.11063706,93421.0,93403.0,0.0004249]
[1745408555396,0.11063706,93421.0,93403.0,0.01662841]
[1745408555637,0.11063706,93421.0,93403.0,0.0004249]
[1745408556297,0.11063706,93421.0,93410.0,0.27184945]
[1745408557436,0.11063706,93421.0,93410.0,0.27284945]
[1745408557868,0.11163706,93421.0,93410.0,0.27284945]
[1745408558552,0.11063706,93421.0,93410.0,0.27284945]
[1745408558738,0.11163706,93421.0,93410.0,0.27284945]
[1745408562507,0.11163706,93421.0,93410.0,0.001]
[1745408562717,0.11163706,93421.0,93410.0,0.27284945]
[1745408563134,0.10789014,93421.0,93410.0,0.27284945]
[1745408565173,0.10789014,93421.0,93410.0,0.28902204]
[1745408565777,0.0037469,93420.0,93410.0,0.01717259]
[1745408565994,0.11063704,93420.0,93410.0,0.28902204]
[1745408566922,0.11063704,93420.0,93410.0,0.28802204]
[1745408567136,0.11063704,93420.0,93410.0,0.28902204]
[1745408567346,0.0494,93419.0,93410.0,0.01717259]
[1745408567550,0.0037469,93418.0,93410.0,0.19562638]
[1745408568424,0.0037469,93418.0,93410.0,0.17845379]
[1745408569855,0.0037469,93418.0,93410.0,0.17945379]
[1745408570500,0.0047469,93418.0,93410.0,0.17945379]
[1745408570932,0.10689014,93417.0,93410.0,0.001]
[1745408571152,0.0496,93415.0,93410.0,0.001]
[1745408571378,0.0494,93413.0,93410.0,0.001]
[1745408571609,0.12517835,93412.0,93410.0,0.001]
[1745408573616,0.12517835,93412.0,93403.0,0.00089164]
[1745408573845,0.12517835,93412.0,93410.0,0.01646388]
[1745408574063,0.12517835,93412.0,93403.0,0.00089164]
[1745408574738,0.12617835,93412.0,93410.0,0.001]
[1745408575180,0.12717835,93412.0,93410.0,0.01623117]
[1745408575634,0.12817835,93412.0,93403.0,0.00189164]
[1745408576109,0.12717835,93412.0,93403.0,0.00089164]
[1745408576318,0.12917835,93412.0,93410.0,0.001]
[1745408576567,0.12717835,93412.0,93410.0,0.001]
[1745408577538,0.00574736,93412.0,93410.0,0.001]
[1745408577795,0.0494,93413.0,93403.0,0.01738761]
[1745408577945,0.003,93412.0,93403.0,0.01838761]
[1745408578362,0.002,93412.0,93403.0,0.00089164]
[1745408578730,0.002,93412.0,93410.0,0.001]
[1745408578961,0.005,93412.0,93410.0,0.001]
[1745408579616,0.003,93412.0,93410.0,0.001]
[1745408579794,0.0494,93413.0,93403.0,0.00089164]
[1745408581176,0.001,93412.0,93403.0,0.00189164]
[1745408581587,0.0494,93413.0,93403.0,0.00089164]
[1745408581876,0.0504,93413.0,93403.0,0.00189164]
[1745408582393,0.0494,93413.0,93403.0,0.00089164]
[1745408582814,0.001,93412.0,93403.0,0.00189164]
[1745408583561,0.001,93412.0,93403.0,0.02175572]
[1745408583987,0.0047469,93412.0,93403.0,0.02175572]
[1745408584215,0.0037469,93412.0,93403.0,0.02075572]
[1745408584609,0.0037469,93412.0,93403.0,0.02175572]
[1745408585032,0.11063704,93412.0,93403.0,0.02075572]
[1745408585242,0.10689014,93411.0,93403.0,0.02175572]
[1745408585452,0.00374727,93410.0,93403.0,0.02175572]
[1745408586087,0.12795388,93409.0,93403.0,0.02175572]
[1745408586296,0.00374735,93408.0,93403.0,0.02175572]
[1745408587114,0.00374735,93408.0,93403.0,0.02075572]
[1745408587607,0.00374735,93408.0,93403.0,0.02175572]
[1745408587943,0.00374735,93408.0,93403.0,0.02075572]
[1745408588361,0.02010352,93407.0,93403.0,0.02175572]
[1745408588574,0.00374735,93406.0,93403.0,0.02175572]
[1745408588765,0.00374735,93406.0,93403.0,0.02075572]
[1745408589194,0.01454085,93405.0,93403.0,0.02175572]
[1745408589405,0.06348846,93404.0,93403.0,0.02175572]
[1745408589611,0.19163319,93404.0,93403.0,0.02175572]
[1745408589826,0.1703786,93404.0,93403.0,0.02175572]
[1745408590034,0.16663099,93404.0,93403.0,0.02175572]
[1745408591013,0.16663099,93404.0,93403.0,0.02075572]
[1745408591623,0.21283099,93404.0,93403.0,0.00089164]
[1745408591824,0.23823649,93404.0,93403.0,0.00189164]
[1745408592032,0.23448885,93404.0,93403.0,0.00189164]
[1745408592231,0.23448885,93404.0,93403.0,0.00089164]
[1745408592631,0.23548885,93404.0,93403.0,0.00189164]
[1745408593550,0.220948,93404.0,93403.0,0.00189164]
[1745408593963,0.221948,93404.0,93403.0,0.02232868]
[1745408594167,0.219948,93404.0,93403.0,0.00089164]
[1745408594456,0.221948,93404.0,93403.0,0.00189164]
[1745408595114,0.220948,93404.0,93403.0,0.00089164]
[1745408595417,0.220948,93404.0,93403.0,0.02122089]
[1745408595787,0.219948,93404.0,93403.0,0.02122089]
[1745408596033,0.222948,93404.0,93403.0,0.02122089]
[1745408596419,0.221948,93404.0,93403.0,0.02122089]
[1745408596618,0.223948,93404.0,93403.0,0.02122089]
[1745408597029,0.23848885,93404.0,93403.0,0.02122089]
[1745408597371,0.67039929,93404.0,93403.0,0.02122089]
[1745408597584,0.67039929,93404.0,93382.0,0.0004249]
[1745408597585,0.01454085,93401.0,93382.0,0.0004249]
[1745408597812,0.01454085,93399.0,93391.0,0.00204666]
[1745408598025,0.01454085,93396.0,93391.0,0.00204666]
[1745408598240,0.0461,93400.0,93391.0,0.00204666]
[1745408598241,0.11063838,93395.0,93391.0,0.00204666]
[1745408598447,0.0466,93394.0,93391.0,0.02274263]
[1745408598680,0.11063843,93393.0,93391.0,0.00204666]
[1745408598863,0.00996134,93392.0,93391.0,0.02213649]
[1745408599106,0.13676192,93392.0,93391.0,0.02213649]
[1745408599316,0.13576192,93392.0,93391.0,0.02213649]
[1745408599501,0.15437294,93392.0,93374.0,0.000425]
[1745408599736,0.11063828,93391.0,93380.0,0.17845379]
[1745408599969,0.12954872,93391.0,93380.0,0.17845379]
[1745408600179,0.12954872,93391.0,93380.0,0.19862091]
[1745408600601,0.10689014,93391.0,93380.0,0.19862091]
[1745408600796,0.11063827,93391.0,93380.0,0.19862091]
[1745408601196,0.11063827,93391.0,93380.0,0.3770747]
[1745408601427,0.11663827,93391.0,93380.0,0.3770747]
[1745408601719,0.11663827,93391.0,93380.0,0.19862091]
[1745408602135,0.12163827,93391.0,93380.0,0.19962091]
[1745408602605,0.01454085,93390.0,93380.0,0.19962091]
[1745408602787,0.11063831,93389.0,93380.0,0.19962091]
[1745408603253,0.06174085,93388.0,93380.0,0.19962091]
[1745408603465,0.01454085,93386.0,93380.0,0.17945379]
[1745408603678,0.01454085,93384.0,93380.0,0.17945379]
[1745408603884,0.01454085,93382.0,93379.0,0.0004717]
[1745408604101,0.0459,93380.0,93379.0,0.0004717]
[1745408604353,0.15279014,93380.0,93379.0,0.0004717]
[1745408604777,0.16733099,93380.0,93379.0,0.0004717]
[1745408605634,0.21523099,93380.0,93379.0,0.0004717]
[1745408605860,0.21423099,93380.0,93379.0,0.0004717]
[1745408606074,0.27872329,93380.0,93379.0,0.0004717]
[1745408606575,0.28372329,93380.0,93379.0,0.0014717]
[1745408607055,0.28472329,93380.0,93379.0,0.0004717]
[1745408607288,0.29072329,93380.0,93379.0,0.0014717]
[1745408607500,0.28472329,93380.0,93379.0,0.0004717]
[1745408607917,0.29072329,93380.0,93379.0,0.0014717]
[1745408608196,0.28472329,93380.0,93379.0,0.0014717]
[1745408608403,0.29072329,93380.0,93379.0,0.0014717]
[1745408609159,0.28472329,93380.0,93379.0,0.0004717]
[1745408609397,0.28572329,93380.0,93379.0,0.0004717]
[1745408609627,0.28472329,93380.0,93379.0,0.0004717]
[1745408609886,0.27872329,93380.0,93379.0,0.0004717]
[1745408610123,0.01454085,93376.0,93374.0,0.000425]
[1745408610348,0.202691,93375.0,93374.0,0.00051985]
[1745408611791,0.209691,93375.0,93374.0,0.00051985]
[1745408612006,0.10689014,93375.0,93374.0,0.00051985]
[1745408612166,0.18224047,93375.0,93374.0,0.00051985]
[1745408612381,0.10863214,93375.0,93374.0,0.00051985]
[1745408612615,0.11063214,93375.0,93374.0,0.00051985]
[1745408613003,0.12054182,93375.0,93374.0,0.00051985]
[1745408614046,0.12517299,93375.0,93374.0,0.00051985]
[1745408614572,0.11917299,93375.0,93374.0,0.00051985]
[1745408615060,0.16807299,93375.0,93374.0,0.00051985]
[1745408615324,0.11917299,93375.0,93374.0,0.00051985]
[1745408615769,0.14071029,93375.0,93374.0,0.00051985]
[1745408616906,0.11917299,93375.0,93374.0,0.00051985]
[1745408617376,0.12908267,93375.0,93374.0,0.00051985]
[1745408625538,0.11917299,93375.0,93374.0,0.00051985]
[1745408626023,0.12910503,93375.0,93374.0,0.00051985]
[1745408626630,0.14896911,93375.0,93374.0,0.00051985]
[1745408626854,0.17348602,93375.0,93374.0,0.00051985]
[1745408628439,0.17148602,93375.0,93374.0,0.00051985]
[1745408628630,0.17248602,93375.0,93374.0,0.00051985]
[1745408629022,0.17148602,93375.0,93374.0,0.00051985]
[1745408629248,0.17248602,93375.0,93374.0,0.00051985]
[1745408629489,0.15762194,93375.0,93374.0,0.00151985]
[1745408629721,0.15662194,93375.0,93374.0,0.00151985]
[1745408629919,0.01454085,93374.0,93363.0,0.01996919]
[1745408630203,0.01454085,93372.0,93365.0,0.00012006]
[1745408630379,0.01454085,93370.0,93365.0,0.00012006]
[1745408630585,0.11856418,93369.0,93365.0,0.00012006]
[1745408631406,0.00993204,93368.0,93365.0,0.00012006]
[1745408631605,0.12395635,93367.0,93365.0,0.00012006]
[1745408632072,0.10863214,93367.0,93365.0,0.00012006]
[1745408632715,0.01989909,93366.0,93365.0,0.00012006]
[1745408632976,0.13672127,93366.0,93365.0,0.00112006]
[1745408633767,0.13672127,93366.0,93365.0,0.00012006]
[1745408634821,0.13772127,93366.0,93365.0,0.00012006]
[1745408635037,0.14272127,93366.0,93365.0,0.00112006]
[1745408635256,0.15937193,93366.0,93365.0,0.00112006]
[1745408635819,0.14446327,93366.0,93365.0,0.00112006]
[1745408636426,0.15191242,93366.0,93365.0,0.00112006]
[1745408639246,0.13201333,93366.0,93365.0,0.00112006]
[1745408639465,0.15194359,93366.0,93365.0,0.00112006]
[1745408643851,0.0376043,93366.0,93365.0,0.00112006]
[1745408644083,0.0358623,93366.0,93365.0,0.00112006]
[1745408644543,0.01593204,93366.0,93365.0,0.00112006]
[1745408644963,0.01093204,93366.0,93365.0,0.00012006]
[1745408645182,0.001,93366.0,93365.0,0.00012006]
[1745408645389,0.001742,93383.0,93367.0,0.001]
[1745408645591,0.10689014,93382.0,93367.0,0.001]
[1745408645805,0.01335013,93381.0,93370.0,0.27691568]
[1745408646001,0.11433929,93380.0,93370.0,0.27691568]
[1745408646208,0.001742,93379.0,93370.0,0.27691568]
[1745408648023,0.001742,93379.0,93367.0,0.001]
[1745408648247,0.002742,93379.0,93369.0,0.27691568]